[Event "FIDE World Cup G12-B 2024"]
[Site "Batumi"]
[Date "2024.06.27"]
[Round "5.1"]
[White "Sreekarthika Velmurugan"]
[Black "Gunawardhana, Devindya Oshini"]
[Result "0-1"]
[ECO "C55"]
[WhiteElo "1838"]
[BlackElo "1980"]
[Annotator "NA RC"]
[PlyCount "146"]
[EventDate "2024.06.23"]
[EventType "swiss"]
[EventCountry "GEO"]
[SourceTitle "playchess.com"]
[Source "ChessBase"]
[SourceQuality "1"]
[TimeControl "5400+30"]

1. e4 {[%emt 0:04:47]} e5 {[%emt 0:00:10]} 2. Bc4 {[%emt 0:00:04]} Nf6 {[%emt 0:00:07]} 3. d3 {[%emt 0:00:04]} Nc6 {[%emt 0:00:04]} 4. Nf3 {[%emt 0:00:06]} Be7 {[%emt 0:00:11]} 5. c3 {[%emt 0:00:08]} O-O {[%emt 0:00:17]} 6. Nbd2 {[%emt 0:00:41]} d6 {[%emt 0:00:39]} 7. Bb3 {[%emt 0:00:51]} Na5 {[%emt 0:03:14]} 8. Bc2 {[%emt 0:01:17]} c5 {[%emt 0:00:30]} 9. O-O {[%emt 0:00:33]} Nc6 {[%emt 0:03:35]} 10. Re1 {[%emt 0:01:29]} h6 {[%emt 0:00:18] C55: Two Knights: 4 d3, 4 d4 exd4 5 e5 and Max Lange Attack.} 11. Nf1 {[%emt 0:03:42]} Re8 {[%emt 0:00:13]} 12. Ng3 {[%emt 0:02:10]} Bf8 {[%emt 0:01:51]} 13. h3 {[%emt 0:08:45]} Be6 {[%emt 0:01:44]} 14. d4 {[%emt 0:06:03]} cxd4 {[%emt 0:00:58]} 15. cxd4 {[%emt 0:00:07]} exd4 {[%emt 0:00:13]} 16. Nxd4 {[%emt 0:01:36]} Nxd4 {[%emt 0:00:23]} 17. Qxd4 {[%emt 0:00:08]} Rc8 {[%emt 0:00:15]} 18. Ba4 {[%emt 0:02:46]} b5 {[%emt 0:06:20]} 19. Bb3 {[%emt 0:02:57]} (19. Bxb5 $2 {loses.} Qa5 $19) 19... a5 {[%emt 0:31:49]} 20. Bxe6 {[%emt 0:03:16]} Rxe6 {[%emt 0:01:38]} 21. Bf4 {[%emt 0:08:26]} Qe8 {[%emt 0:02:50]} 22. Qd3 $11 {[%emt 0:04:03]} d5 {[%emt 0:19:12]} 23. e5 {[%emt 0:01:07]} Rc4 {[%emt 0:00:02]} 24. Ne2 {[%emt 0:00:37]} Nd7 {[%emt 0:02:27]} 25. b3 {[%emt 0:03:38]} Rc8 {[%emt 0:11:04]} 26. Nd4 {[%emt 0:02:07]} Nc5 {[%emt 0:06:59]} 27. Qe2 {[%emt 0:11:01]} Rb6 {[%emt 0:00:49]} 28. Rac1 {[%emt 0:00:55]} b4 {[%emt 0:00:16]} 29. Nf5 {[%emt 0:01:57]} Ne4 {[%emt 0:02:14]} 30. Nxh6+ {[%emt 0:03:44]} Rxh6 {[%emt 0:01:59]} 31. Bxh6 {[%emt 0:00:05]} Nc3 {[%emt 0:03:04]} 32. Qg4 {[%emt 0:00:33]} Qe6 {[%emt 0:00:01]} 33. Qxe6 {[%emt 0:00:52]} fxe6 {[%emt 0:00:01]} 34. Bd2 {[%emt 0:00:09]} d4 {[%emt 0:00:27]} 35. Kf1 {[%emt 0:02:38]} Rd8 {[%emt 0:00:54]} 36. Bxc3 {[%emt 0:04:04]} dxc3 {[%emt 0:00:27]} 37. Red1 {[%emt 0:00:21]} Ra8 {[%emt 0:00:22]} 38. Ke2 {[%emt 0:00:29]} Bc5 {[%emt 0:00:36]} 39. Rd3 {[%emt 0:01:31]} Kh7 {[%emt 0:01:14]} 40. f4 {[%emt 0:00:27]} Rf8 {[%emt 0:00:19]} 41. Rf3 {[%emt 0:00:10]} Rd8 {[%emt 0:00:34]} 42. Rc2 {[%emt 0:01:11]} Rd4 {[%emt 0:00:21]} 43. g3 {[%emt 0:00:52]} Re4+ {[%emt 0:00:05]} 44. Kd1 {[%emt 0:01:09]} Rd4+ {[%emt 0:00:22]} 45. Kc1 {[%emt 0:01:36]} Re4 {[%emt 0:00:03]} 46. Rf1 {[%emt 0:01:08]} Be3+ {[%emt 0:01:45]} 47. Kd1 {[%emt 0:00:34]} Rd4+ {[%emt 0:00:21]} 48. Ke2 {[%emt 0:00:07]} Bd2 {[%emt 0:00:01]} 49. Rd1 {[%emt 0:00:10]} Re4+ {[%emt 0:00:36]} 50. Kf3 {[%emt 0:00:17]} Re3+ {[%emt 0:00:22]} 51. Kf2 {[%emt 0:00:07]} Rd3 {[%emt 0:00:07]} 52. h4 {[%emt 0:02:38]} Kg8 {[%emt 0:00:54]} 53. Rcxd2 {[%emt 0:04:30]} cxd2 {[%emt 0:00:07]} 54. Ke2 {[%emt 0:02:45]} Rxg3 {[%emt 0:00:05]} 55. Rxd2 {[%emt 0:00:02]} Kf7 {[%emt 0:01:30]} 56. Rc2 {[%emt 0:02:19]} Kg6 {[%emt 0:00:43]} 57. Kd1 {[%emt 0:02:16]} Rg1+ {[%emt 0:00:37]} 58. Kd2 {[%emt 0:00:07]} Rg2+ {[%emt 0:00:03]} 59. Kd3 {[%emt 0:00:28]} Rxc2 {[%emt 0:00:10]} 60. Kxc2 {[%emt 0:00:02]} Kf5 {[%emt 0:00:00]} 61. Kd3 {[%emt 0:00:08]} Kxf4 {[%emt 0:00:02]} 62. Kd4 {[%emt 0:00:07]} g6 {[%emt 0:00:01]} 63. Kc5 {[%emt 0:01:42]} Kxe5 {[%emt 0:00:03]} 64. Kb5 {[%emt 0:00:03]} Kd4 {[%emt 0:00:09]} 65. Kxa5 {[%emt 0:00:03]} e5 {[%emt 0:00:15]} 66. Kxb4 {[%emt 0:00:03]} e4 {[%emt 0:00:01]} 67. a4 {[%emt 0:00:05]} e3 {[%emt 0:00:03]} 68. a5 {[%emt 0:00:02]} e2 {[%emt 0:00:02]} 69. a6 {[%emt 0:00:03]} e1=Q+ {[%emt 0:00:06]} 70. Kb5 {[%emt 0:00:01]} Qxh4 {[%emt 0:00:46]} 71. a7 {[%emt 0:00:05]} Qd8 {[%emt 0:00:09]} 72. Ka6 {[%emt 0:00:04]} Qc8+ {[%emt 0:00:15]} 73. Kb6 {[%emt 0:00:07]} Kc3 {[%emt 0:00:11]} 0-1

[Event "FIDE World Cup G12-B 2024"]
[Site "Batumi"]
[Date "2024.06.27"]
[Round "5.2"]
[White "Pavithra R V"]
[Black "Pratitee Bordoloi"]
[Result "0-1"]
[ECO "B11"]
[WhiteElo "1614"]
[BlackElo "1796"]
[Annotator "NA RC"]
[PlyCount "134"]
[EventDate "2024.06.23"]
[EventType "swiss"]
[EventCountry "GEO"]
[SourceTitle "playchess.com"]
[Source "ChessBase"]
[SourceQuality "1"]
[TimeControl "5400+30"]

1. e4 {[%emt 0:00:02]} c6 {[%emt 0:00:06]} 2. Nc3 {[%emt 0:00:05]} d5 {[%emt 0:00:10]} 3. Qf3 {[%emt 0:00:04]} d4 {[%emt 0:01:17]} 4. Bc4 {[%emt 0:00:12]} e6 {[%emt 0:03:10]} 5. Nce2 {[%emt 0:00:45]} c5 {[%emt 0:00:19]} 6. c3 {[%emt 0:06:59]} Nc6 {[%emt 0:02:07]} 7. cxd4 {[%emt 0:09:34]} cxd4 {[%emt 0:01:30]} 8. Bb5 {[%emt 0:02:33]} Nge7 {[%emt 0:01:56]} 9. a3 {[%emt 0:18:13]} a6 {[%emt 0:01:31]} 10. Ba4 {[%emt 0:00:28]} b5 {[%emt 0:03:04]} 11. Bb3 {[%emt 0:07:09]} Ng6 {[%emt 0:05:12]} 12. d3 {[%emt 0:04:45]} Qa5+ {[%emt 0:09:37]} 13. Bd2 {[%emt 0:00:52]} Bb4 {[%emt 0:01:28]} 14. Rd1 {[%emt 0:05:21]} Bxd2+ {[%emt 0:01:22]} 15. Rxd2 {[%emt 0:00:05]} Bd7 {[%emt 0:01:55]} 16. Qg3 {[%emt 0:00:57]} h5 {[%emt 0:17:14]} 17. Nf3 {[%emt 0:09:35]} Qb6 {[%emt 0:04:39]} 18. Qd6 {[%emt 0:01:33]} O-O-O {[%emt 0:03:06]} 19. h4 {[%emt 0:03:40]} Kb7 {[%emt 0:06:07]} 20. Qg3 {[%emt 0:05:49]} Rh6 {[%emt 0:10:31]} 21. Ng5 {[%emt 0:04:49]} Nh8 {[%emt 0:07:49]} 22. Nf4 {[%emt 0:04:55]} Ne7 {[%emt 0:06:11]} 23. Bd1 {[%emt 0:06:20]} g6 {[%emt 0:01:54]} 24. Bf3 {[%emt 0:00:55]} Ka7 {[%emt 0:00:28]} 25. Ngh3 {[%emt 0:00:23]} f6 {[%emt 0:00:35]} 26. Ke2 {[%emt 0:01:00]} Nf7 {[%emt 0:00:24]} 27. Rc1 {[%emt 0:00:59]} Ne5 {[%emt 0:03:00]} 28. Rdc2 {[%emt 0:00:33]} Rc8 {[%emt 0:00:24]} 29. Rxc8 {[%emt 0:00:23]} Nxc8 {[%emt 0:00:11]} 30. Ng1 {[%emt 0:02:33]} Nd6 {[%emt 0:00:59]} 31. Nfh3 {[%emt 0:00:17]} Rh8 {[%emt 0:01:24]} 32. Qf4 {[%emt 0:00:34]} Rf8 {[%emt 0:01:06]} 33. b4 {[%emt 0:01:01]} Qd8 {[%emt 0:02:21]} 34. g3 {[%emt 0:00:45]} Ndf7 {[%emt 0:00:12]} 35. Qd2 {[%emt 0:00:28]} Nc6 {[%emt 0:00:45]} 36. Nf4 {[%emt 0:00:15]} Nfe5 {[%emt 0:00:11]} 37. Bg2 {[%emt 0:00:40]} Qe7 {[%emt 0:01:11]} 38. Nf3 {[%emt 0:00:27]} Qf7 {[%emt 0:00:22]} 39. Qc2 {[%emt 0:00:58]} Rc8 {[%emt 0:00:37]} 40. Qc5+ {[%emt 0:00:18]} Kb7 {[%emt 0:00:07]} 41. Qd6 {[%emt 0:00:38]} Qf8 {[%emt 0:00:56]} 42. Qxf8 {[%emt 0:00:53]} Rxf8 {[%emt 0:00:01]} 43. Nd2 {[%emt 0:00:59]} g5 {[%emt 0:01:59]} 44. Nxh5 {[%emt 0:00:34]} gxh4 {[%emt 0:00:20]} 45. gxh4 {[%emt 0:00:04]} Ng6 {[%emt 0:00:10]} 46. Nb3 {[%emt 0:00:49]} Nxh4 {[%emt 0:00:55]} 47. Bh1 {[%emt 0:00:07]} e5 {[%emt 0:00:46]} 48. Nc5+ {[%emt 0:00:37]} Kc7 {[%emt 0:00:13]} 49. Nxd7 {[%emt 0:00:14]} Kxd7 {[%emt 0:00:11]} 50. Rg1 {[%emt 0:00:11]} Ne7 {[%emt 0:00:51]} 51. f4 {[%emt 0:01:10]} Nhg6 {[%emt 0:01:00]} 52. f5 {[%emt 0:00:36]} Nf4+ {[%emt 0:00:23]} 53. Nxf4 {[%emt 0:00:07]} exf4 {[%emt 0:00:04]} 54. Kf3 {[%emt 0:01:41]} Nc6 {[%emt 0:00:06]} 55. Rg7+ {[%emt 0:00:40]} Kd6 {[%emt 0:00:11]} 56. Kxf4 {[%emt 0:00:18]} Ne5 {[%emt 0:00:28]} 57. Ra7 {[%emt 0:01:22]} Nxd3+ {[%emt 0:00:04]} 58. Kf3 {[%emt 0:00:04]} Ne5+ {[%emt 0:00:06]} 59. Kf2 {[%emt 0:00:10]} d3 {[%emt 0:00:14]} 60. Rxa6+ {[%emt 0:00:27]} Kc7 {[%emt 0:00:15]} 61. Ke3 {[%emt 0:01:04]} Rd8 {[%emt 0:00:28]} 62. Kd2 {[%emt 0:00:49]} Nc4+ {[%emt 0:00:04]} 63. Kd1 {[%emt 0:00:08]} d2 {[%emt 0:00:08]} 64. Bf3 {[%emt 0:00:58]} Ne3+ {[%emt 0:00:06]} 65. Ke2 {[%emt 0:00:03]} d1=Q+ {[%emt 0:00:09]} 66. Kxe3 {[%emt 0:00:05]} Rd3+ {[%emt 0:00:07]} 67. Kf4 {[%emt 0:00:05]} Qxf3# {[%emt 0:00:06]} 0-1

[Event "FIDE World Cup G12-B 2024"]
[Site "Batumi"]
[Date "2024.06.27"]
[Round "5.3"]
[White "Amanzhol, Khanzada"]
[Black "Li, Sophie"]
[Result "1-0"]
[ECO "C45"]
[WhiteElo "1685"]
[BlackElo "1764"]
[Annotator "NA RC"]
[PlyCount "77"]
[EventDate "2024.06.23"]
[EventType "swiss"]
[EventCountry "GEO"]
[SourceTitle "playchess.com"]
[Source "ChessBase"]
[SourceQuality "1"]
[TimeControl "5400+30"]

1. e4 {[%emt 0:00:14]} e5 {[%emt 0:00:07]} 2. Nf3 {[%emt 0:00:15]} Nc6 {[%emt 0:00:25]} 3. d4 {[%emt 0:00:20]} exd4 {[%emt 0:00:35]} 4. Nxd4 {[%emt 0:00:33]} Bb4+ {[%emt 0:00:31]} 5. c3 {[%emt 0:02:35]} Bc5 {[%emt 0:00:36]} 6. Nxc6 {[%emt 0:01:33]} bxc6 {[%emt 0:01:02]} 7. Bd3 {[%emt 0:02:09]} d6 {[%emt 0:04:10]} 8. O-O {[%emt 0:04:49]} Nf6 {[%emt 0:01:52]} 9. Nd2 {[%emt 0:04:38]} O-O {[%emt 0:04:25]} 10. Nb3 {[%emt 0:00:21]} Bb6 {[%emt 0:00:56]} 11. Bg5 {[%emt 0:00:15]} h6 {[%emt 0:01:47]} 12. Bh4 {[%emt 0:00:08]} Re8 {[%emt 0:01:40]} 13. Re1 {[%emt 0:07:45]} Be6 {[%emt 0:08:50]} 14. Nd4 {[%emt 0:02:39]} g5 {[%emt 0:05:49]} 15. Bg3 {[%emt 0:00:29]} Qd7 {[%emt 0:04:51]} 16. Nxe6 {[%emt 0:06:23]} Qxe6 {[%emt 0:03:00]} 17. e5 {[%emt 0:00:50]} dxe5 {[%emt 0:01:45]} 18. Rxe5 {[%emt 0:01:58]} Qd7 {[%emt 0:03:19]} 19. Rf5 {[%emt 0:01:43]} Ne4 {[%emt 0:09:58]} 20. Qf3 {[%emt 0:10:23]} Nd2 {[%emt 0:02:25]} 21. Qh5 {[%emt 0:04:46]} Qe6 {[%emt 0:08:08]} 22. h4 {[%emt 0:02:25]} Rad8 {[%emt 0:04:18]} 23. Bc2 {[%emt 0:02:21]} gxh4 {[%emt 0:10:20]} 24. Bxh4 {[%emt 0:01:40]} Rd5 {[%emt 0:01:09]} 25. Rd1 {[%emt 0:06:07]} Ne4 {[%emt 0:07:28]} 26. Rdxd5 {[%emt 0:05:12]} cxd5 {[%emt 0:00:27]} 27. Bxe4 {[%emt 0:01:15]} dxe4 {[%emt 0:00:42]} 28. Bf6 {[%emt 0:00:37]} Kh7 {[%emt 0:01:18]} 29. Be5 {[%emt 0:05:07]} Kg8 {[%emt 0:02:11]} 30. Qg4+ {[%emt 0:05:55]} Qg6 {[%emt 0:00:38]} 31. Qxe4 {[%emt 0:00:14]} Rd8 {[%emt 0:01:48]} 32. Qf3 {[%emt 0:01:15]} c6 {[%emt 0:02:52]} 33. Rf4 {[%emt 0:02:23]} Rd2 {[%emt 0:01:20]} 34. Rg4 {[%emt 0:00:31]} Bxf2+ {[%emt 0:00:22]} 35. Kh2 {[%emt 0:00:20]} Qg5 {[%emt 0:01:47]} 36. Rxg5+ {[%emt 0:00:08]} hxg5 {[%emt 0:00:04]} 37. Qf6 {[%emt 0:00:32]} Kf8 {[%emt 0:00:38]} 38. Bd6+ {[%emt 0:00:07]} Kg8 {[%emt 0:00:17]} 39. Qxg5+ {[%emt 0:00:06]} 1-0

[Event "FIDE World Cup G12-B 2024"]
[Site "Batumi"]
[Date "2024.06.27"]
[Round "5.4"]
[White "Xu, Luna Yuexiu"]
[Black "Abylaykyzy, Bibisara"]
[Result "1-0"]
[ECO "B84"]
[WhiteElo "1761"]
[BlackElo "1577"]
[Annotator "NA RC"]
[PlyCount "55"]
[EventDate "2024.06.23"]
[EventType "swiss"]
[EventCountry "GEO"]
[SourceTitle "playchess.com"]
[Source "ChessBase"]
[SourceQuality "1"]
[TimeControl "5400+30"]

1. e4 {[%emt 0:00:03]} c5 {[%emt 0:00:03]} 2. Nf3 {[%emt 0:00:10]} d6 {[%emt 0:00:05]} 3. d4 {[%emt 0:00:22]} cxd4 {[%emt 0:00:04]} 4. Nxd4 {[%emt 0:00:10]} Nf6 {[%emt 0:00:04]} 5. Nc3 {[%emt 0:00:13]} a6 {[%emt 0:00:03]} 6. f4 {[%emt 0:01:08]} e6 {[%emt 0:00:06]} 7. Be2 {[%emt 0:00:52]} Nbd7 {[%emt 0:00:12]} 8. Be3 {[%emt 0:00:58]} b5 {[%emt 0:00:19]} 9. a3 {[%emt 0:00:37]} Bb7 {[%emt 0:00:19]} 10. Bf3 {[%emt 0:02:33]} Rc8 {[%emt 0:02:15]} 11. O-O {[%emt 0:02:35]} Qc7 {[%emt 0:02:28]} 12. Qe1 {[%emt 0:07:04]} Nb6 {[%emt 0:02:47]} 13. e5 {[%emt 0:19:12]} dxe5 {[%emt 0:09:20]} 14. fxe5 {[%emt 0:05:12]} Bxf3 {[%emt 0:08:55]} 15. exf6 {[%emt 0:03:07]} Bb7 {[%emt 0:02:20]} 16. Rd1 {[%emt 0:07:21]} gxf6 {[%emt 0:04:21]} 17. Rxf6 {[%emt 0:01:36]} Rg8 {[%emt 0:02:15]} 18. g3 {[%emt 0:02:33]} Be7 {[%emt 0:03:35]} 19. Bf4 {[%emt 0:07:26]} Qc5 {[%emt 0:02:15]} 20. Rxf7 {[%emt 0:02:39]} Rg6 {[%emt 0:07:02]} 21. Rxh7 {[%emt 0:03:40]} Nd7 {[%emt 0:17:03]} 22. Rh8+ {[%emt 0:02:51]} Nf8 {[%emt 0:03:21]} 23. Qe5 {[%emt 0:03:30]} Qb6 {[%emt 0:10:44]} 24. Bh6 {[%emt 0:03:46]} Bf6 {[%emt 0:03:55]} 25. Rxf8+ {[%emt 0:00:21]} Ke7 {[%emt 0:01:17]} 26. Rxf6 {[%emt 0:00:18]} Rxf6 {[%emt 0:15:01]} 27. Bg5 {[%emt 0:00:08]} Rcf8 {[%emt 0:00:11]} 28. Rf1 {[%emt 0:00:13]} 1-0

[Event "FIDE World Cup G12-B 2024"]
[Site "Batumi"]
[Date "2024.06.27"]
[Round "5.5"]
[White "QUICKPEN, Deborah Ebimobo-ere"]
[Black "Amin-Erdene, Tsengel"]
[Result "0-1"]
[ECO "B43"]
[WhiteElo "2048"]
[BlackElo "1491"]
[Annotator "NA RC"]
[PlyCount "128"]
[EventDate "2024.06.23"]
[EventType "swiss"]
[EventCountry "GEO"]
[SourceTitle "playchess.com"]
[Source "ChessBase"]
[SourceQuality "1"]
[TimeControl "5400+30"]

1. e4 {[%emt 0:00:02]} c5 {[%emt 0:00:24]} 2. Nf3 {[%emt 0:00:14]} e6 {[%emt 0:00:27]} 3. d4 {[%emt 0:00:44]} cxd4 {[%emt 0:00:30]} 4. Nxd4 {[%emt 0:00:40]} a6 {[%emt 0:00:35]} 5. Nc3 {[%emt 0:00:50]} Qc7 {[%emt 0:00:38]} 6. a3 {[%emt 0:02:32]} Nf6 {[%emt 0:01:22]} 7. Be3 {[%emt 0:00:59] 7.f4 gains popularity.} Be7 {[%emt 0:01:17] B43: Sicilian: Kan Variation: 5 Nc3.} 8. Be2 {[%emt 0:01:54]} O-O {[%emt 0:01:57]} 9. O-O {[%emt 0:02:08]} b5 {[%emt 0:01:43]} 10. f3 {[%emt 0:05:13]} Bb7 {[%emt 0:01:33]} 11. Qd2 {[%emt 0:00:17]} d6 {[%emt 0:02:09]} 12. Rfd1 {[%emt 0:01:20]} Nbd7 {[%emt 0:02:18]} 13. Qe1 {[%emt 0:08:17]} Nb6 $146 {[%emt 0:04:11]} ({Predecessor:} 13... Rac8 14. Qg3 Kh8 15. Nb3 Ne5 16. Nd2 Ng6 17. f4 Rfd8 18. Bf3 d5 19. e5 d4 20. exf6 Bxf6 21. Bxd4 Bxd4+ {0-1 Trzaskowska,H (1540)-Czarnecka,L (1901) POL-ch rapid (Women) 2020 (6)}) 14. Qg3 {[%emt 0:01:43]} Kh8 {[%emt 0:05:45]} 15. Kh1 {[%emt 0:07:18]} Nfd7 {[%emt 0:05:27]} 16. Rac1 {[%emt 0:03:42]} Ne5 {[%emt 0:06:53]} 17. Qe1 {[%emt 0:06:43]} (17. Bg1 $11) 17... Nbc4 {[%emt 0:03:10]} 18. Bxc4 {[%emt 0:00:27]} Nxc4 {[%emt 0:00:29]} 19. Rb1 $1 {[%emt 0:01:14]} Rac8 {[%emt 0:01:55]} 20. Rd3 {[%emt 0:01:14]} Rfd8 {[%emt 0:05:09]} 21. Bf2 {[%emt 0:01:35]} Bf6 {[%emt 0:03:58]} 22. Nce2 {[%emt 0:03:19]} d5 {[%emt 0:02:54]} 23. exd5 {[%emt 0:01:26]} Bxd5 {[%emt 0:02:38]} (23... Rxd5 $142 24. Nc3 Rh5) 24. Bg3 {[%emt 0:02:32]} Qb6 {[%emt 0:02:10]} 25. c3 {[%emt 0:02:27]} (25. Bf2 $17) 25... e5 {[%emt 0:03:00]} 26. Nc2 {[%emt 0:02:30]} e4 {[%emt 0:01:50]} 27. fxe4 $19 {[%emt 0:00:12]} Bxe4 {[%emt 0:00:11]} 28. Rxd8+ {[%emt 0:00:06]} Rxd8 {[%emt 0:00:39]} 29. Ned4 {[%emt 0:01:12]} Bxd4 {[%emt 0:01:49]} 30. Qxe4 {[%emt 0:00:53]} Nd2 {[%emt 0:02:18]} 31. Qf5 {[%emt 0:03:22]} Nxb1 {[%emt 0:00:42]} 32. Nxd4 {[%emt 0:00:07]} Nd2 {[%emt 0:01:46]} 33. h4 {[%emt 0:01:43]} Qg6 {[%emt 0:03:54]} 34. Qe5 {[%emt 0:01:44]} Ne4 {[%emt 0:02:06]} 35. Be1 {[%emt 0:01:17]} Nf6 {[%emt 0:02:11]} 36. Qf4 {[%emt 0:04:46]} Re8 {[%emt 0:00:47]} 37. Bf2 {[%emt 0:00:27]} Ng4 {[%emt 0:01:32]} 38. Bg1 {[%emt 0:00:15]} h6 {[%emt 0:01:55]} 39. Nf5 {[%emt 0:00:40]} Re5 {[%emt 0:02:35]} 40. Nd4 {[%emt 0:02:27]} Rh5 {[%emt 0:02:21]} 41. g3 {[%emt 0:00:17]} Re5 {[%emt 0:01:11]} 42. Kg2 {[%emt 0:01:05]} Qe4+ {[%emt 0:03:30]} 43. Qxe4 {[%emt 0:00:10]} Rxe4 {[%emt 0:00:05]} 44. Kf3 {[%emt 0:00:05]} Nf6 {[%emt 0:00:08]} 45. Be3 {[%emt 0:00:05]} Re7 {[%emt 0:00:56]} 46. Nf5 {[%emt 0:00:10]} Re5 {[%emt 0:01:14]} 47. Nd6 {[%emt 0:01:07]} Kg8 {[%emt 0:00:58]} 48. Nb7 {[%emt 0:00:24]} Rf5+ {[%emt 0:03:02]} 49. Ke2 {[%emt 0:00:23]} Ne4 {[%emt 0:01:07]} 50. g4 {[%emt 0:00:42]} Rd5 {[%emt 0:00:41]} 51. Bd4 {[%emt 0:00:32]} Nd6 {[%emt 0:01:36]} 52. Nc5 {[%emt 0:01:00]} a5 {[%emt 0:00:36]} 53. b3 {[%emt 0:00:18]} f5 {[%emt 0:00:55]} 54. g5 {[%emt 0:00:44]} hxg5 {[%emt 0:00:39]} 55. hxg5 {[%emt 0:00:08]} Kf7 {[%emt 0:01:06]} 56. Kf3 {[%emt 0:00:18]} b4 {[%emt 0:01:42]} 57. axb4 {[%emt 0:01:01]} axb4 {[%emt 0:00:07]} 58. Nd7 {[%emt 0:01:54]} bxc3 {[%emt 0:00:19]} 59. Ne5+ {[%emt 0:00:08]} Ke6 {[%emt 0:00:36]} 60. Bxc3 {[%emt 0:00:30]} Rxe5 {[%emt 0:00:14]} 61. Bxe5 {[%emt 0:00:05]} Kxe5 {[%emt 0:00:07]} 62. b4 {[%emt 0:00:07]} g6 {[%emt 0:00:21]} 63. Ke3 {[%emt 0:00:11]} f4+ {[%emt 0:00:13]} 64. Kd3 {[%emt 0:00:07]} Kf5 {[%emt 0:00:21]} 0-1

[Event "FIDE World Cup G12-B 2024"]
[Site "Batumi"]
[Date "2024.06.27"]
[Round "5.6"]
[White "Bassari, Senem Gul"]
[Black "Bakhshizada, Asnad"]
[Result "1-0"]
[ECO "C01"]
[WhiteElo "1768"]
[BlackElo "1748"]
[Annotator "NA RC"]
[PlyCount "146"]
[EventDate "2024.06.23"]
[EventType "swiss"]
[EventCountry "GEO"]
[SourceTitle "playchess.com"]
[Source "ChessBase"]
[SourceQuality "1"]
[TimeControl "5400+30"]

1. e4 {[%emt 0:00:15]} e6 {[%emt 0:00:38]} 2. d4 {[%emt 0:00:07]} d5 {[%emt 0:00:07]} 3. exd5 {[%emt 0:00:29]} exd5 {[%emt 0:00:10]} 4. Nf3 {[%emt 0:00:08]} Nf6 {[%emt 0:00:15]} 5. Bd3 {[%emt 0:00:09]} Bd6 {[%emt 0:00:21]} 6. Bg5 {[%emt 0:01:19]} h6 {[%emt 0:01:07]} 7. Bh4 {[%emt 0:00:44]} O-O {[%emt 0:00:42]} 8. O-O {[%emt 0:00:33]} Bg4 {[%emt 0:01:29]} 9. Nbd2 {[%emt 0:04:30]} Nbd7 {[%emt 0:00:52]} 10. c4 {[%emt 0:01:45]} c6 {[%emt 0:01:18]} 11. Qc2 {[%emt 0:02:38]} Rc8 {[%emt 0:04:56]} 12. c5 {[%emt 0:08:28]} Bb8 {[%emt 0:01:47]} 13. Rfe1 {[%emt 0:01:17]} Re8 {[%emt 0:02:51]} 14. h3 {[%emt 0:02:24]} Bxf3 {[%emt 0:02:23]} 15. Bxf6 {[%emt 0:04:57]} Nxf6 {[%emt 0:06:31]} 16. Nxf3 {[%emt 0:00:13]} Qa5 {[%emt 0:07:50]} 17. Ne5 {[%emt 0:08:54]} b6 {[%emt 0:06:09]} 18. Bf5 {[%emt 0:04:13]} Rc7 {[%emt 0:02:22]} 19. cxb6 {[%emt 0:02:37]} axb6 {[%emt 0:00:57]} 20. Re2 {[%emt 0:13:41]} Rce7 {[%emt 0:05:18]} 21. Re3 {[%emt 0:25:16]} Bxe5 {[%emt 0:02:36]} 22. dxe5 {[%emt 0:05:09]} Rxe5 {[%emt 0:00:44]} 23. Rxe5 {[%emt 0:00:55]} Rxe5 {[%emt 0:00:23]} 24. Qxc6 {[%emt 0:04:08]} Qb4 {[%emt 0:04:43]} 25. Qc8+ {[%emt 0:01:11]} Re8 {[%emt 0:00:20]} 26. Qc2 {[%emt 0:01:14]} Qf4 {[%emt 0:14:29]} 27. Rd1 {[%emt 0:02:24]} Qe5 {[%emt 0:01:12]} 28. a4 {[%emt 0:01:28]} Qe2 {[%emt 0:01:27]} 29. b4 {[%emt 0:01:17]} Qa6 {[%emt 0:01:58]} 30. Bd3 {[%emt 0:01:14]} Qa7 {[%emt 0:00:28]} 31. Bb5 {[%emt 0:00:23]} Rd8 {[%emt 0:00:30]} 32. Qf5 {[%emt 0:00:48]} Qe7 {[%emt 0:00:39]} 33. Qf4 {[%emt 0:00:56]} Ne4 {[%emt 0:00:38]} 34. Bd3 {[%emt 0:00:42]} Nc3 {[%emt 0:02:07]} 35. Ra1 {[%emt 0:00:49]} d4 {[%emt 0:00:28]} 36. Qf5 {[%emt 0:00:35]} g6 {[%emt 0:00:21]} 37. Qf4 {[%emt 0:00:34]} Kg7 {[%emt 0:02:00]} 38. a5 {[%emt 0:01:06]} Qxb4 {[%emt 0:02:16]} 39. Qe5+ {[%emt 0:00:00]} Kg8 {[%emt 0:00:38]} 40. Qc7 {[%emt 0:00:23]} Ra8 {[%emt 0:01:13]} 41. a6 {[%emt 0:00:26]} Qc5 {[%emt 0:03:08]} 42. Qb7 {[%emt 0:00:30]} Qf8 {[%emt 0:02:39]} 43. Bc4 {[%emt 0:00:32]} Rb8 {[%emt 0:01:05]} 44. Bxf7+ {[%emt 0:00:31]} Kg7 {[%emt 0:01:09]} 45. Qc7 {[%emt 0:00:27]} Qd8 {[%emt 0:01:36]} 46. Qxd8 {[%emt 0:00:37]} Rxd8 {[%emt 0:00:06]} 47. a7 {[%emt 0:00:22]} Ra8 {[%emt 0:00:03]} 48. Bc4 {[%emt 0:00:36]} Kf6 {[%emt 0:00:23]} 49. g3 {[%emt 0:00:26]} Ke5 {[%emt 0:01:02]} 50. Bf1 {[%emt 0:00:36]} Kd6 {[%emt 0:00:46]} 51. Bg2 {[%emt 0:00:27]} Nd5 {[%emt 0:00:13]} 52. Kf1 {[%emt 0:00:31]} d3 {[%emt 0:00:44]} 53. Ke1 {[%emt 0:00:32]} Re8+ {[%emt 0:00:40]} 54. Kd2 {[%emt 0:00:21]} Nc7 {[%emt 0:00:21]} 55. a8=Q {[%emt 0:00:32]} Nxa8 {[%emt 0:00:05]} 56. Bxa8 {[%emt 0:00:33]} Re2+ {[%emt 0:00:10]} 57. Kxd3 {[%emt 0:00:05]} Rxf2 {[%emt 0:00:05]} 58. Rc1 {[%emt 0:00:51]} Kd7 {[%emt 0:01:08]} 59. Ke3 {[%emt 0:00:35]} Ra2 {[%emt 0:00:20]} 60. Be4 {[%emt 0:00:29]} Ra3+ {[%emt 0:00:07]} 61. Kf4 {[%emt 0:00:25]} g5+ {[%emt 0:00:50]} 62. Kg4 {[%emt 0:00:17]} h5+ {[%emt 0:01:55]} 63. Kxg5 {[%emt 0:00:40]} Rxg3+ {[%emt 0:00:05]} 64. Kh4 {[%emt 0:00:11]} Ra3 {[%emt 0:00:25]} 65. Bf5+ {[%emt 0:00:06]} Kd6 {[%emt 0:00:17]} 66. Kxh5 {[%emt 0:00:26]} b5 {[%emt 0:00:19]} 67. Kg5 {[%emt 0:00:42]} b4 {[%emt 0:00:10]} 68. h4 {[%emt 0:00:31]} b3 {[%emt 0:00:10]} 69. Rb1 {[%emt 0:00:49]} Kc5 {[%emt 0:00:12]} 70. h5 {[%emt 0:00:05]} Kd4 {[%emt 0:00:16]} 71. h6 {[%emt 0:00:16]} Kc3 {[%emt 0:00:06]} 72. h7 {[%emt 0:00:27]} Ra8 {[%emt 0:00:08]} 73. Rh1 {[%emt 0:00:20]} Rh8 {[%emt 0:02:26]} 1-0